fUSD/lending_fUSD_20251109
["ID","MTS","AMOUNT","RATE_DAILY","PERIOD"]
[393457157,1762680697677,11.12586727,0.00014999,2]
[393457158,1762680697843,500.0,0.00014999,2]
[393457159,1762680697882,500.0,0.00014999,2]
[393457160,1762680697931,500.0,0.00014999,2]
[393457161,1762680697976,500.0,0.00014999,2]
[393457162,1762680698017,500.0,0.00014999,2]
[393457163,1762680698057,500.0,0.00014999,2]
[393457164,1762680698097,489.43961898,0.00014999,2]
[393457165,1762680698161,500.0,0.00014999,2]
[393457166,1762681384520,-166.66,0.00015262,2]
[393457167,1762681384545,-40.4424901,0.00015342,2]
[393457168,1762681518877,200.16337338,0.00013873,2]
[393457205,1762681613828,500.0,0.00039126,120]
[393457206,1762681614054,500.0,0.00039126,120]
[393457207,1762681614291,500.0,0.00039126,120]
[393457208,1762681614517,500.0,0.00039126,120]
[393457209,1762681614738,500.0,0.00039126,120]
[393457210,1762681614966,500.0,0.00039126,120]
[393457211,1762681615188,500.0,0.00039126,120]
[393457212,1762681615408,500.0,0.00039126,120]
[393457213,1762681615648,500.0,0.00039126,120]
[393457214,1762681615875,500.0,0.00039126,120]
[393457215,1762681616149,500.0,0.00039126,120]
[393457216,1762681616381,500.0,0.00039126,120]
[393457217,1762681616601,500.0,0.00039126,120]
[393457218,1762681616837,500.0,0.00039126,120]
[393457219,1762681617078,260.98983375,0.00039126,120]
[393457372,1762681831586,-250.0,0.00015362,2]
[393457373,1762681831596,-195.0,0.00015367,2]
[393457374,1762681831606,-300.0,0.00015372,2]
[393457375,1762681831616,-195.0,0.00015372,2]
[393457376,1762681831626,-330.96029593,0.00015454,2]
[393457377,1762681831636,-190.47853347,0.00015513,2]
[393457378,1762681831653,-166.66,0.00015583,2]
[393457379,1762681831663,-170.68,0.00015782,2]
[393457380,1762681831673,-250.0,0.00015812,2]
[393457381,1762681831683,-2322.13,0.0001584,2]
[393457382,1762681831693,-796.73,0.00015844,2]
[393457383,1762681831703,-152.87,0.00015855,2]
[393457384,1762681831713,-1200.0,0.00015857,2]
[393457385,1762681831722,-1200.0,0.00015857,2]
[393457386,1762681831733,-300.0,0.00015858,2]
[393457387,1762681831742,-2390.41172719,0.00015859,2]
[393457388,1762681831756,-599.44,0.0001586,2]
[393457389,1762681831765,-205.66788485,0.0001586,2]
[393457390,1762681831782,-81.33211515,0.0001586,2]
[393457391,1762681831791,-382.10254146,0.0001586,2]
[393457392,1762681831806,-1246.01731037,0.0001586,2]
[393457393,1762681831817,-8371.87014817,0.0001586,2]
[393457394,1762681831827,-500.0,0.00015881,2]
[393457395,1762681831837,-177.54630722,0.00015881,2]
[393457396,1762681831847,-500.0,0.00015881,2]
[393457397,1762681831856,-396.25426208,0.00015881,2]
[393457399,1762681831865,-500.0,0.00015881,2]
[393457401,1762681831875,-500.0,0.00015881,2]
[393457403,1762681831884,-500.0,0.00015881,2]
[393457405,1762681831894,-500.0,0.00015881,2]
[393457407,1762681831903,-500.0,0.00015881,2]
[393457408,1762681831913,-500.0,0.00015881,2]
[393457409,1762681831923,-500.0,0.00015881,2]
[393457410,1762681831932,-500.0,0.00015881,2]
[393457411,1762681831944,-500.0,0.00015881,2]
[393457412,1762681831954,-500.0,0.00015881,2]
[393457413,1762681831964,-500.0,0.00015881,2]
[393457415,1762681831974,-29121.53,0.00015882,2]
[393457416,1762681831983,-166.66,0.00015905,2]
[393457417,1762681831992,-500.0,0.0001608,2]
[393457418,1762681832002,-1000.0,0.00016181,2]
[393457419,1762681832011,-500.0,0.000162,2]
[393457420,1762681832021,-500.0,0.000162,2]
[393457421,1762681832031,-166.66,0.00016226,2]
[393457422,1762681832045,-550.0,0.0001627,2]
[393457423,1762681832055,-1209.29,0.00016273,2]
[393457424,1762681832065,-1434.82,0.0001628,2]
[393457425,1762681832075,-235.87014725,0.0001628,2]
[393457426,1762681832084,-173.63610269,0.000163,2]
[393457427,1762681832094,-500.0,0.00016325,2]
[393457428,1762681832104,-349.30178506,0.00016325,2]
[393457429,1762681832114,-500.0,0.00016325,2]
[393457430,1762681832123,-500.0,0.00016325,2]
[393457431,1762681832132,-501.59027207,0.00016325,2]
[393457432,1762681832142,-500.0,0.00016325,2]
[393457433,1762681832152,-529.71411758,0.00016325,2]
[393457434,1762681832161,-500.0,0.00016325,2]
[393457435,1762681832170,-500.0,0.00016325,2]
[393457436,1762681832180,-150.0,0.0001634,2]
[393457437,1762681832189,-277.595,0.00016438,2]
[393457438,1762681832199,-150.0,0.00016438,2]
[393457439,1762681832208,-153.89248172,0.00016438,2]
[393457440,1762681832217,-2356.08,0.00016438,2]
[393457441,1762681832228,-338.57656952,0.00016438,2]
[393457442,1762681832237,-500.0,0.0001645,2]
[393457443,1762681832247,-500.0,0.0001645,2]
[393457444,1762681832256,-166.66,0.00016547,2]
[393457445,1762681832266,-165.98456805,0.0001655,2]
[393457446,1762681832278,-503.6468697,0.0001655,2]
[393457447,1762681832287,-500.0,0.0001655,2]
[393457448,1762681832296,-405.90836484,0.0001655,2]
[393457449,1762681832306,-500.0,0.0001655,2]
[393457450,1762681832315,-500.0,0.0001655,2]
[393457451,1762681832326,-510.0,0.0001655,2]
[393457452,1762681832336,-500.0,0.0001655,2]
[393457453,1762681832346,-150.0,0.0001655,2]
[393457454,1762681832356,-150.0,0.0001655,2]
[393457455,1762681832365,-150.46278398,0.0001655,2]
[393457456,1762681832375,-500.0,0.0001655,2]
[393457457,1762681832384,-150.0,0.0001655,2]
[393457458,1762681832394,-151.64689543,0.0001655,2]
[393457459,1762681832403,-500.0,0.0001655,2]
[393457460,1762681832412,-500.0,0.0001655,2]
[393457461,1762681832422,-606.98844194,0.0001655,2]
[393457462,1762681832432,-222.79373771,0.0001655,2]
[393457463,1762681832442,-153.12080025,0.0001655,2]
[393457464,1762681832451,-1434.82,0.00016554,2]
[393457465,1762681832461,-162.69130558,0.00016575,2]
[393457466,1762681832471,-500.0,0.000166,2]
[393457467,1762681832481,-500.0,0.000166,2]
[393457468,1762681832491,-500.0,0.00016687,2]
[393457469,1762681832500,-510.0,0.00016687,2]
[393457470,1762681832510,-500.0,0.00016687,2]
[393457471,1762681832520,-150.0,0.00016687,2]
[393457472,1762681832530,-150.0,0.00016687,2]
[393457473,1762681832539,-500.0,0.00016687,2]
[393457474,1762681832549,-150.0,0.00016687,2]
[393457475,1762681832558,-500.0,0.00016687,2]
[393457476,1762681832567,-157.77265244,0.00016786,2]
[393457477,1762681832577,-150.0,0.00016786,2]
[393457478,1762681832586,-150.0,0.00016786,2]
[393457479,1762681832596,-262.27802841,0.00016824,2]
[393457480,1762681832606,-510.0,0.00016824,2]
[393457481,1762681832615,-150.0,0.00016824,2]
[393457482,1762681832624,-500.0,0.00016824,2]
[393457483,1762681832634,-204.70898309,0.00016824,2]
[393457484,1762681832643,-500.0,0.00016824,2]
[393457485,1762681832652,-1434.82,0.00016828,2]
[393457486,1762681832662,-3066.94316731,0.0001684,2]
[393457487,1762681832671,-166.66,0.00016869,2]
[393457488,1762681832681,-1000.0,0.00016873,2]
[393457489,1762681832691,-1024.46659852,0.00016873,2]
[393457490,1762681832700,-193.0,0.00016877,2]
[393457491,1762681832710,-252.09600473,0.00016877,2]
[393457492,1762681832720,-300.0,0.00016877,2]
[393457493,1762681832730,-300.0,0.00016877,2]
[393457494,1762681832740,-250.0,0.00016877,2]
[393457495,1762681832750,-300.0,0.00016877,2]
[393457496,1762681832761,-300.0,0.00016877,2]
[393457497,1762681832771,-195.0,0.00016877,2]
[393457498,1762681832782,-300.0,0.00016899,2]
[393457499,1762681832791,-300.0,0.00016899,2]
[393457500,1762681832801,-195.0,0.00016899,2]
[393457501,1762681832811,-195.0,0.00016899,2]
[393457502,1762681832820,-200.0,0.00016922,2]
[393457503,1762681832830,-150.0,0.00016923,2]
[393457504,1762681832840,-150.0,0.00016923,2]
[393457505,1762681832849,-999.0,0.00016926,3]
[393457506,1762681832859,-510.0,0.00016961,2]
[393457507,1762681832870,-151.17577208,0.00016961,2]
[393457508,1762681832879,-500.0,0.00016961,2]
[393457509,1762681832889,-1268.8,0.00016989,2]
[393457510,1762681832899,-309.3685034,0.00016998,2]
[393457511,1762681832908,-500.0,0.00016998,2]
[393457512,1762681832918,-208803.82248108,0.00017,2]
[393457513,1762681832931,-18648.50392804,0.00017,2]
[393457514,1762681832943,-52615.32515139,0.00017,2]
[393457515,1762681832962,-10237.59376891,0.00017,2]
[393457516,1762681832973,-1486.47249204,0.00017,2]
[393457517,1762681832984,-803.67,0.00017,2]
[393457518,1762681832996,-38976.61323467,0.00017,2]
[393457528,1762681837583,-12306.88218844,0.00017,2]
[393457531,1762681837596,-5507.53469996,0.00017,2]
[393457533,1762681837609,-775.99311449,0.00017,2]
[393457535,1762681837621,-1134.22,0.00017,2]
[393457537,1762681837637,-541244.47912298,0.00017,2]
[393457538,1762681837647,-510.0,0.00017098,2]
[393457539,1762681837657,-500.0,0.00017098,2]
[393457540,1762681837666,-1000.0,0.00017098,2]
[393457541,1762681837677,-500.0,0.00017098,2]
[393457542,1762681837687,-1434.82,0.00017102,2]
[393457543,1762681837698,-510.0,0.00017235,2]
[393457544,1762681837707,-500.0,0.00017235,2]
[393457545,1762681837717,-500.0,0.00017326,2]
[393457546,1762681837727,-647.0,0.0001734,2]
[393457547,1762681837737,-420.0,0.00017341,2]
[393457548,1762681837746,-510.0,0.00017372,2]
[393457549,1762681837757,-500.0,0.00017372,2]
[393457550,1762681837767,-1434.82,0.00017376,2]
[393457551,1762681837777,-255.0,0.00017393,2]
[393457552,1762681837787,-1500.0,0.00017421,2]
[393457553,1762681837796,-1680.0,0.00017427,2]
[393457554,1762681837806,-500.0,0.00017507,2]
[393457555,1762681837816,-510.0,0.00017509,2]
[393457556,1762681837826,-500.0,0.00017509,2]
[393457557,1762681837835,-216.30346759,0.0001757,2]
[393457558,1762681837845,-6641.826,0.000176,2]
[393457559,1762681837855,-279.885,0.000176,2]
[393457560,1762681837865,-176.06683222,0.00017601,2]
[393457561,1762681837874,-328.26199658,0.00017601,2]
[393457562,1762681837884,-510.0,0.00017646,2]
[393457563,1762681837894,-500.0,0.00017646,2]
[393457564,1762681837904,-1500.0,0.00017646,2]
[393457565,1762681837914,-1434.82,0.0001765,2]
[393457566,1762681837924,-34091.49804357,0.00017654,2]
[393457567,1762681837934,-30996.5443183,0.00017654,2]
[393457568,1762681837943,-713.63036617,0.00017667,7]
[393457569,1762681837953,-500.0,0.00017667,2]
[393457570,1762681837964,-500.0,0.00017667,2]
[393457571,1762681837974,-532.10925199,0.00017667,2]
[393457572,1762681837983,-500.0,0.00017667,2]
[393457573,1762681837993,-500.0,0.00017667,2]
[393457574,1762681838002,-500.0,0.00017667,2]
[393457575,1762681838012,-34091.49804356,0.00017681,2]
[393457576,1762681838022,-30996.54431822,0.00017681,2]
[393457577,1762681838032,-500.0,0.00017699,2]
[393457578,1762681838046,-500.0,0.00017699,2]
[393457579,1762681838056,-500.0,0.00017699,2]
[393457580,1762681838067,-500.0,0.00017699,2]
[393457581,1762681838076,-317.47531547,0.00017699,2]
[393457582,1762681838086,-500.0,0.00017699,2]
[393457583,1762681838096,-420000.0,0.000177,2]
[393457584,1762681838107,-34091.49804356,0.00017709,2]
[393457585,1762681838120,-30996.54431822,0.00017709,2]
[393457586,1762681838130,-34091.49804356,0.00017736,2]
[393457587,1762681838140,-30996.54431822,0.00017736,2]
[393457588,1762681838151,-298.43740158,0.00017748,2]
[393457589,1762681838161,-221.92525619,0.00017754,2]
[393457590,1762681838171,-5000.0,0.00017756,2]
[393457591,1762681838180,-34091.49804356,0.00017763,2]
[393457592,1762681838190,-30996.54431822,0.00017763,2]
[393457593,1762681838201,-1726.84557519,0.0001777,2]
[393457594,1762681838211,-510.0,0.00017783,2]
[393457595,1762681838221,-500.0,0.00017783,2]
[393457596,1762681838231,-151.0,0.00017788,2]
[393457597,1762681838240,-1400.9694296,0.00017789,2]
[393457598,1762681838250,-34091.49804356,0.00017791,2]
[393457599,1762681838260,-30996.54431822,0.00017791,2]
[393457600,1762681838270,-496.71,0.00017792,2]
[393457601,1762681838280,-34091.49804356,0.00017818,2]
[393457602,1762681838290,-30996.54431822,0.00017818,2]
[393457603,1762681838300,-2655.09212,0.0001782,2]
[393457604,1762681838310,-34091.49804356,0.00017845,2]
[393457605,1762681838320,-30996.54431822,0.00017845,2]
[393457606,1762681838330,-34091.49804356,0.00017873,2]
[393457607,1762681838339,-30996.54431822,0.00017873,2]
[393457608,1762681838349,-443.80642507,0.000179,2]
[393457609,1762681838359,-187.05498475,0.000179,2]
[393457610,1762681838369,-2132.92021393,0.000179,2]
[393457611,1762681838379,-34091.49804356,0.000179,2]
[393457612,1762681838388,-190.10232692,0.000179,3]
[393457613,1762681838397,-30996.54431822,0.000179,2]
[393457614,1762681838407,-510.0,0.0001792,2]
[393457615,1762681838418,-500.0,0.0001792,2]
[393457616,1762681838428,-1434.82,0.00017924,2]
[393457617,1762681838438,-2000.0,0.00017969,2]
[393457618,1762681838448,-17044.0,0.00017973,2]
[393457619,1762681838458,-500.0,0.00017973,2]
[393457620,1762681838468,-562.61261097,0.00017973,2]
[393457621,1762681838479,-500.0,0.00017973,2]
[393457622,1762681838489,-501.42288003,0.00017973,2]
[393457623,1762681838499,-500.0,0.00017973,2]
[393457624,1762681838508,-500.0,0.00017973,2]
[393457625,1762681838518,-500.0,0.00017973,2]
[393457626,1762681838530,-298.43740158,0.00017976,2]
[393457627,1762681838540,-151.0,0.00017997,2]
[393457628,1762681838550,-3679.9110555,0.00017998,2]
[393457629,1762681838561,-187.5007986,0.00017998,2]
[393457630,1762681838571,-89265.138194,0.00017998,2]
[393457631,1762681838581,-5181246.60178138,0.00018,2]
[393457632,1762681838595,-10442.98807178,0.00018,2]
[393457633,1762681838621,-150.0,0.00016438,2]
[393457634,1762681838631,-386.1356,0.00018,2]
[393457647,1762681839592,-281.92420023,0.00016575,2]
[393457648,1762681839604,-356.97736696,0.00018,2]
[393457649,1762681839618,-6638.0,0.00018,2]
[393457650,1762681839631,-1601.90482398,0.00018,2]
[393457651,1762681839698,-487.69971715,0.00018,2]
[393457652,1762681839753,-23177.9119642,0.00018,2]
[393457653,1762681839809,-43148.80411134,0.00018,2]
[393457703,1762681845280,-807.72847044,0.00018,2]
[393457704,1762681845292,-35955.66209705,0.00018,2]
[393457715,1762681845498,-320340.75384392,0.00018,2]
[393457718,1762681845512,-928.31,0.00018,7]
[393457720,1762681845522,-140213.47817788,0.00018,2]
[393457721,1762681845532,-156.203306,0.00018,2]
[393457722,1762681845542,-158.267894,0.00018,2]
[393457723,1762681845552,-375.678707,0.00018,2]
[393457724,1762681845562,-911.416876,0.00018,2]
[393457725,1762681845572,-842.968354,0.00018,2]
[393457726,1762681845581,-200.0,0.00018,2]
[393457727,1762681845591,-500.0,0.00018,2]
[393457728,1762681845601,-500.0,0.00018,2]
[393457730,1762681845610,-500.0,0.00018,2]
[393457732,1762681845620,-500.0,0.00018,2]
[393457734,1762681845630,-500.0,0.00018,2]
[393457736,1762681845640,-500.0,0.00018,2]
[393457738,1762681845650,-500.0,0.00018,2]
[393457739,1762681845660,-580.15735792,0.00018,2]
[393457740,1762681845670,-166.66,0.00018013,2]
[393457741,1762681845680,-350.0,0.00018021,2]
[393457742,1762681845690,-510.0,0.00018057,2]
[393457743,1762681845699,-500.0,0.00018057,2]
[393457744,1762681845714,-572.35,0.00018066,2]
[393457747,1762681845724,-350.0,0.0001807,2]
[393457749,1762681845733,-1763.17263167,0.000181,2]
[393457750,1762681845743,-350.0,0.0001817,2]
[393457751,1762681845753,-200.0,0.0001818,2]
[393457752,1762681845763,-510.0,0.00018194,2]
[393457753,1762681845772,-500.0,0.00018194,2]
[393457755,1762681845782,-2000.0,0.00018194,2]
[393457757,1762681845791,-1434.82,0.00018198,2]
[393457759,1762681845800,-298.43740158,0.00018204,2]
[393457760,1762681845810,-178.62,0.0001821,2]
[393457761,1762681845820,-350.0,0.00018246,2]
[393457762,1762681845830,-350.0,0.00018283,2]
[393457764,1762681845840,-510.0,0.00018331,2]
[393457766,1762681845849,-500.0,0.00018331,2]
[393457768,1762681845859,-87614.51,0.00018356,2]
[393457770,1762681845869,-200.0,0.00018362,2]
[393457772,1762681845879,-5888.0,0.00018397,2]
[393457774,1762681845889,-298.43740158,0.00018432,2]
[393457776,1762681845902,-510.0,0.00018468,2]
[393457778,1762681845912,-500.0,0.00018468,2]
[393457780,1762681845922,-1434.82,0.00018472,2]
[393457781,1762681845932,-2500.0,0.00018517,2]
[393457782,1762681845942,-200.0,0.00018545,2]
[393457783,1762681845952,-166.66,0.00018589,2]
[393457784,1762681845962,-510.0,0.00018605,2]
[393457785,1762681845973,-9.60868666,0.00018605,2]
[393457786,1762681845991,-490.39131334,0.00018605,2]
[393457787,1762681846001,-103.8804845,0.00018623,2]
[393457788,1762681846087,-58.69183337,0.00018623,2]
[393457789,1762681846097,-976.7054831,0.00018629,2]
[393457790,1762681846107,-298.73583898,0.0001866,2]
[393457791,1762681846123,-2425.66961173,0.00018667,2]
[393457792,1762681846140,-1013.112101,0.00018667,2]
[393457793,1762681846152,-92761.73546677,0.00018667,2]
[393457794,1762681846162,-350.0,0.00018702,2]
[393457795,1762681846172,-350.0,0.00018723,2]
[393457796,1762681846182,-200.0,0.00018731,2]
[393457797,1762681846192,-572.35,0.0001874,2]
[393457798,1762681846202,-510.0,0.00018742,2]
[393457799,1762681846212,-500.0,0.00018742,2]
[393457800,1762681846222,-2500.0,0.00018742,2]
[393457801,1762681846232,-1434.82,0.00018746,2]
[393457802,1762681846242,-350.0,0.00018751,2]
[393457803,1762681846252,-151.53,0.000188,2]
[393457804,1762681846261,-350.0,0.000188,2]
[393457805,1762681846272,-5888.0,0.0001881,2]
[393457806,1762681846282,-350.0,0.00018812,2]
[393457807,1762681846292,-2655.09212,0.0001882,2]
[393457808,1762681846302,-350.0,0.0001883,2]
[393457809,1762681846312,-350.0,0.00018856,2]
[393457810,1762681846326,-510.0,0.00018879,2]
[393457811,1762681846335,-395.34756632,0.00018879,2]
[393457812,1762681846345,-350.0,0.00018901,2]
[393457813,1762681846355,-328.26199656,0.00018915,2]
[393457814,1762681846364,-350.0,0.00018948,2]
[393457815,1762681846374,-587.0,0.00018962,2]
[393457816,1762681846384,-194.32,0.00018989,2]
[393457817,1762681846394,-217.9324508,0.00018998,2]
[393457818,1762681846403,-300.0,0.00019,2]
[393457819,1762681846413,-3416.09533425,0.00019,5]
[393457820,1762681846423,-5121.52870796,0.00019,2]
[393457821,1762681846432,-45573.27201384,0.00019,2]
[393457822,1762681846445,-1288.54280263,0.00019,2]
[393457823,1762681846458,-1765.808058,0.00019,2]
[393457842,1762682264881,153.64,8.447e-05,2]
[393457843,1762682265102,153.64,8.988e-05,2]
[393457844,1762682265303,153.64,9.529e-05,2]
[393457845,1762682265490,153.64,0.0001007,2]
[393457846,1762682265694,153.64,0.00010611,2]
[393457847,1762682265888,153.64,0.00011152,2]
[393457848,1762682266108,153.64,0.00011693,2]
[393457849,1762682266300,153.64,0.00012234,2]
[393457850,1762682266490,153.64,0.00012775,2]
[393457851,1762682266706,153.64,0.00013316,2]
[393457852,1762682266895,153.64,0.00013857,2]
[393457853,1762682267089,153.64,0.00014398,2]
[393457854,1762682267589,153.64,0.00014939,2]
[393457855,1762682297604,1000.0,0.00013699,2]
[393457857,1762682475482,2000.00130105,0.00039116,60]
[393457858,1762682486836,155.15807978,0.00039116,60]
[393457859,1762682607430,1304.10328836,0.00039116,120]
[393457860,1762682638364,860.38426997,0.00039116,120]
[393457899,1762683032188,-153.64,0.0001548,2]
[393457900,1762683032198,-195.0,0.00015514,2]
[393457901,1762683032207,-250.0,0.00015547,2]
[393457902,1762683032217,-300.0,0.00015687,2]
[393457903,1762683032228,-300.0,0.00015687,2]
[393457904,1762683032237,-1200.0,0.00015687,2]
[393457905,1762683032248,-4312.36,0.00015689,2]
[393457906,1762683032260,-1480.499992,0.00015689,2]
[393457907,1762683032272,-864.08449454,0.00015689,2]
[393457908,1762683032287,-318.10448703,0.00015689,2]
[393457909,1762683032298,-2695.0935315,0.00015689,2]
[393457910,1762683032309,-633.73787207,0.00015689,2]
[393457911,1762683032371,-51248.34962286,0.00015689,2]
[393457912,1762683032384,-3128.28,0.00015732,2]
[393457913,1762683032393,-250.0,0.00015734,2]
[393457914,1762683032403,-150.0,0.00015822,2]
[393457915,1762683032412,-411.05,0.00015908,2]
[393457916,1762683032422,-153.64,0.00016021,2]
[393457917,1762683032435,-4644.31,0.00016086,2]
[393457918,1762683032444,-225.0,0.00016348,2]
[393457919,1762683032453,-5968.9818,0.0001635,2]
[393457920,1762683032464,-234.4396,0.0001635,2]
[393457921,1762683032475,-5105.8959,0.0001635,2]
[393457922,1762683032484,-1330.419626,0.00016373,2]
[393457923,1762683032494,-198.47661074,0.00016373,2]
[393457924,1762683032507,-192.2637087,0.00016373,2]
[393457925,1762683032516,-971.74,0.00016385,2]
[393457926,1762683032526,-166.67,0.00016386,2]
[393457927,1762683032535,-9999.99,0.00016386,2]
[393457928,1762683032550,-150.99,0.00016386,2]
[393457929,1762683032562,-174.38695686,0.00016437,2]
[393457930,1762683032573,-577.58418383,0.00016437,2]
[393457931,1762683032583,-177.80085844,0.00016437,2]
[393457932,1762683032592,-500.0,0.00016438,2]
[393457933,1762683032602,-500.0,0.00016438,2]
[393457934,1762683032611,-151.0,0.0001644,2]
[393457935,1762683032621,-151.0,0.0001644,2]
[393457936,1762683032631,-151.0,0.0001644,2]
[393457937,1762683032640,-151.0,0.0001644,2]
[393457938,1762683032650,-151.0,0.0001644,2]
[393457939,1762683032659,-151.0,0.0001644,2]
[393457940,1762683032669,-151.0,0.0001644,2]
[393457941,1762683032678,-151.0,0.0001644,2]
[393457942,1762683032687,-151.0,0.0001644,2]
[393457943,1762683032696,-151.0,0.0001644,2]
[393457944,1762683032706,-151.0,0.0001644,2]
[393457945,1762683032715,-151.0,0.0001644,2]
[393457946,1762683032725,-151.0,0.0001644,2]
[393457947,1762683032734,-151.0,0.0001644,2]
[393457948,1762683032743,-151.0,0.0001644,2]
[393457949,1762683032753,-151.0,0.0001644,2]
[393457950,1762683032762,-151.0,0.0001644,2]
[393457951,1762683032771,-151.0,0.0001644,2]
[393457952,1762683032784,-151.0,0.0001644,2]
[393457953,1762683032793,-151.0,0.0001644,2]
[393457954,1762683032803,-151.0,0.0001644,2]
[393457955,1762683032812,-151.0,0.0001644,2]
[393457956,1762683032822,-151.0,0.0001644,2]
[393457957,1762683032832,-151.0,0.0001644,2]
[393457958,1762683032841,-151.0,0.0001644,2]
[393457959,1762683032851,-151.0,0.0001644,2]
[393457960,1762683032860,-151.0,0.0001644,2]
[393457961,1762683032870,-151.0,0.0001644,2]
[393457962,1762683032879,-151.0,0.0001644,2]
[393457963,1762683032889,-151.0,0.0001644,2]
[393457964,1762683032898,-151.0,0.0001644,2]
[393457965,1762683032908,-151.0,0.0001644,2]
[393457966,1762683032917,-151.0,0.0001644,2]
[393457967,1762683032927,-151.0,0.0001644,2]
[393457968,1762683032936,-151.0,0.0001644,2]
[393457969,1762683032946,-151.0,0.0001644,2]
[393457970,1762683032955,-208.7547261,0.0001644,2]
[393457971,1762683032964,-500.0,0.00016449,2]
[393457972,1762683032974,-4843.58916895,0.00016449,2]
[393457973,1762683032983,-500.0,0.00016449,2]
[393457974,1762683032993,-500.0,0.00016449,2]
[393457975,1762683033002,-500.0,0.00016449,2]
[393457976,1762683033012,-513.33825688,0.00016449,2]
[393457977,1762683033021,-500.0,0.00016449,2]
[393457978,1762683033031,-500.0,0.00016449,2]
[393457979,1762683033040,-476.84400488,0.00016449,2]
[393457980,1762683033049,-631.36940064,0.00016449,2]
[393457981,1762683033059,-500.0,0.00016449,2]
[393457982,1762683033068,-500.0,0.00016449,2]
[393457983,1762683033079,-269.8581518,0.00016449,2]
[393457984,1762683033088,-500.0,0.00016449,2]
[393457985,1762683033099,-500.0,0.00016449,2]
[393457986,1762683033109,-34442.80939729,0.0001645,2]
[393457987,1762683033122,-35949.0030408,0.0001645,2]
[393457988,1762683033172,-500.35201657,0.00015687,2]
[393457989,1762683033182,-500.0,0.00015687,2]
[393457990,1762683033192,-500.0,0.00015687,2]
[393457991,1762683033202,-500.0,0.00016438,2]
[393457992,1762683033212,-500.0,0.00016438,2]
[393457993,1762683033222,-1934.29728642,0.0001645,2]
[393457994,1762683033271,-500.0,0.00015687,2]
[393457995,1762683033282,-22.04790989,0.00016438,2]
[393457996,1762683033294,-418.24853192,0.00016438,2]
[393457997,1762683033307,-59.70355819,0.00016438,2]
[393457998,1762683033317,-245.81644181,0.00016438,2]
[393457999,1762683033363,-649.47813417,0.00015687,2]
[393458000,1762683033373,-500.0,0.00015687,2]
[393458001,1762683033382,-46.50467038,0.00016438,2]
[393458002,1762683033418,-70.69605443,0.00016438,2]
[393458003,1762683033431,-500.0,0.00016438,2]
[393458004,1762683033440,-500.0,0.00016438,2]
[393458005,1762683033449,-500.0,0.00016438,2]
[393458006,1762683033458,-500.0,0.00016438,2]
[393458007,1762683033467,-500.0,0.00016438,2]
[393458008,1762683033477,-5771.98425578,0.0001645,2]
[393458011,1762683037742,-478.37891291,0.00015687,2]
[393458012,1762683037754,-21.62108709,0.00015687,2]
[393458013,1762683037764,-500.0,0.00015687,2]
[393458014,1762683037773,-500.0,0.00015687,2]
[393458015,1762683037783,-500.0,0.00015687,2]
[393458016,1762683037793,-500.0,0.00015687,2]
[393458017,1762683037803,-500.0,0.00015687,2]